Cogmind - Beta 14 @@@ ROGUE MODE // 2024.09.26 @ 10:50:08 Player: SpaceWalrus Result: Destroyed by D-53 Grenadier with Mini Grenade Launcher Performance ------------- Evolutions (0) 0 Regions Visited (2) 400 Robots Destroyed (30) 150 Value Destroyed (500) 500 Prototype IDs (0) 0 Alien Tech Used (0) 0 Bonus (0) 0 TOTAL SCORE: 1050 Bonus ------- None Cogmind --------- Core Integrity 0/250 Matter 300/300 Energy 100/100 System Corruption 7% Temperature Cool (0) Movement Core (100) Ox1 Location -10/Mines Parts ------- > --- POWER (1) -------- (None) > --- PROPULSION (2) --- (None) > --- UTILITY (2) ------ Small Storage Unit > --- WEAPON (2) ------- (None) > --- INVENTORY (8) ---- Ion Engine Aluminum Leg Improved Heat Sink Improved Terrain Scanner Light Armor Plating Hacking Suite Beam Cannon Assault Rifle Peak State ------------ > --- POWER ------------ Ion Engine > --- PROPULSION ------- Aluminum Leg Aluminum Leg > --- UTILITY ---------- Small Storage Unit Structural Scanner > --- WEAPON ----------- Medium Laser Rocket Launcher > --- INVENTORY -------- Ion Engine Aluminum Leg Improved Heat Sink Improved Terrain Scanner Light Armor Plating Hacking Suite Beam Cannon Assault Rifle [Rating: 9] Favorites ----------- Power Ion Engine Engine Ion Engine Propulsion Aluminum Leg Leg Aluminum Leg Utility Small Storage Unit Device Structural Scanner Storage Small Storage Unit Protection Light Armor Plating Weapon Medium Laser Energy Gun Medium Laser Ballistic Gun Assault Rifle Launcher Rocket Launcher Build | -11 -10 -10 ------- Run | Yrd Mat Min Slots Evolved . | . . . Power . | . . . Propulsion . | . . . Utility . | . . . Weapon . | . . . Parts Attached 19 | 7 5 7 Power 2 | 1 1 . Engine 2 | 1 1 . Core . | . . . Reactor . | . . . Propulsion 6 | 2 2 2 Treads . | . . . Leg 6 | 2 2 2 Wheel . | . . . Hover . | . . . Flight . | . . . Utility 6 | 2 1 3 Device 3 | 1 . 2 Storage 1 | 1 . . Processor . | . . . Hackware . | . . . Protection 2 | . 1 1 Artifact . | . . . Weapon 5 | 2 1 2 Energy Gun 2 | 1 . 1 Energy Cannon . | . . . Ballistic Gun 2 | 1 1 . Ballistic Cannon . | . . . Launcher 1 | . . 1 Special Weapon . | . . . Impact Weapon . | . . . Slashing Weapon . | . . . Piercing Weapon . | . . . Special Melee Weapon . | . . . Unidentified Prototypes . | . . . Parts Lost 7 | . 1 6 Power 2 | . 1 1 Propulsion 2 | . . 2 Utility 1 | . . 1 Weapon 2 | . . 2 Highest Loss Streak 6 | . 1 6 To Critical Strikes . | . . . Average Slot Usage (%) 99 | . 98 99 Engine 13 | . 12 14 Leg 27 | . 28 27 Device 10 | . 8 12 Storage 14 | . 14 14 Protection 3 | . 5 1 Energy Gun 14 | . 14 14 Ballistic Gun 13 | . 14 12 Peak Build Rating 9 | 7 8 9 Average Rating 7 | 4 7 8 On Entrance 5 | . 7 8 Naked Turns . | . . . Heaviest Build 17 | 12 17 17 Greatest Support 20 | 20 20 20 Greatest Overweight (x) 2 | 2 . 2 Average Overweight (x) . | . . . Largest Inventory Capacity 8 | 8 8 8 Average Capacity 7 | 7 8 8 Most Carried 8 | 6 8 8 Average Carried 7 | 3 6 7 Final Capacity 8 | 8 8 8 Final Carried 8 | 5 8 8 Class Distribution -------------------- 57% | Mutant 42% | Scavenger-Mutant Dominant Class ---------------- Mutant | -10/Materials Scavenger-Mutant | -10/Mines Resources | -11 -10 -10 ----------- Run | Yrd Mat Min Matter Collected 534 | 274 111 149 Remotely . | . . . Salvage Created 1091 | 103 734 254 Parts 53 | 3 32 18 Haulers Intercepted 2 | . 2 . Recyclers Shooed 3 | . 2 1 Parts Field Recycled . | . . . Retrieved Matter . | . . . Parts Self-Destructed . | . . . Prevented . | . . . Kills | -11 -10 -10 ------- Run | Yrd Mat Min Combat Hostiles Destroyed 21 | . 7 14 Guns 15 | . 7 8 AOE 6 | . . 6 Classes Destroyed 10 | 2 5 3 Worker 1 | . . 1 Builder 2 | . 1 1 Tunneler 3 | 1 1 1 Hauler 2 | . 2 . Recycler 4 | 1 3 . Operator 2 | . 2 . Watcher 1 | . 1 . Swarmer 6 | . . 6 Grunt 9 | . 7 2 Assembled 6 | . . 6 Best Kill Streak 5 | 2 5 4 Combat Bots Only 4 | . 2 4 Max Kills in Single Turn 4 | 1 1 4 Gunslinging . | . . . Exploded 4 | . . 4 Melee . | . . . Uniques/NPCs Destroyed . | . . . Combat | -11 -10 -10 -------- Run | Yrd Mat Min Hostile Shots Fired 105 | . 34 71 Missed 35 | . 6 29 Damage Taken 1045 | . 330 715 Core 253 | . 62 191 Absorbed by Shields . | . . . Core Remaining (%) 100 | 100 . . Volleys Fired 87 | 10 54 23 Largest 2 | 2 2 2 Hottest 83 | 70 70 83 Shots Fired 174 | 20 108 46 Gun 170 | 20 108 42 Cannon . | . . . Launcher 4 | . . 4 Special . | . . . Kinetic 83 | 10 54 19 Thermal 87 | 10 54 23 Explosive 4 | . . 4 Electromagnetic . | . . . Robot Hit Streak 10 | 6 7 10 Robot Miss Streak 3 | 3 3 3 Penetration Max . | . . . Secondary Targets 2 | . 1 1 Max Gunslinging Chain 1 | . 1 1 Shots Hit Robots 101 | 12 66 23 Core Hits 63 | 3 31 29 Critical Kills . | . . . Critical Parts Destroyed . | . . . Critical Strikes 8 | 2 5 1 Burn 8 | 2 5 1 Melee Attacks . | . . . Impact . | . . . Slashing . | . . . Piercing . | . . . Sneak Attacks . | . . . Combat Hostiles . | . . . Follow-up Attacks . | . . . Damage Inflicted 1588 | 119 740 729 Guns 1172 | 119 740 313 Cannons . | . . . Explosions 416 | . . 416 Melee . | . . . Ramming . | . . . Kinetic 515 | 57 285 173 Thermal 657 | 62 455 140 Explosive 416 | . . 416 Electromagnetic . | . . . Impact . | . . . Slashing . | . . . Piercing . | . . . Highest Corruption 7 | . . 7 Average Corruption 3 | . . 3 Corruption Purged . | . . . Corruption Blocked . | . . . Overload Shots . | . . . Overflow Damage 5 | . . 5 Projectiles . | . . . Explosions 5 | . . 5 Melee . | . . . Knockbacks . | . . . Impact . | . . . Kinetic . | . . . Secondary . | . . . Self-Inflicted Damage 77 | . . 77 Shots 2 | . . 2 Rammed . | . . . Targets Rammed . | . . . Kicked . | . . . Crushed . | . . . Highest Temperature 190 | 82 190 150 Average Temperature 49 | 31 57 38 Received Heat Transfer 270 | . 201 69 Siege Activations . | . . . Robots Corrupted . | . . . Combat Hostiles . | . . . Parts Fried . | . . . Impact Corruptions . | . . . Robots Melted 1 | . 1 . Combat Hostiles . | . . . Parts Melted 4 | . 4 . Heat Transferred 2516 | 333 1702 481 Parts Sabotaged . | . . . Parts Stolen . | . . . Parts Stripped . | . . . Power Chain Reactions . | . . . Alert | -11 -10 -10 ------- Run | Yrd Mat Min Peak Influence 245 | 10 222 245 Initial 21 | . 6 21 Average 110 | 2 95 144 Maximum Alert Level 1 | . 1 1 Low Security (%) 74 | 100 87 57 Level 1 25 | . 12 42 Level 2 . | . . . Level 3 . | . . . Level 4 . | . . . Level 5 . | . . . High Security . | . . . Max Security . | . . . Squads Dispatched 2 | . 2 . Investigation . | . . . Extermination . | . . . Reinforcement 2 | . 2 . Assault . | . . . Garrison . | . . . Intercept . | . . . Searches Triggered . | . . . Construction Impeded . | . . . Haulers Reinforced . | . . . Active Scanning Responses . | . . . Cargo Convoy Interrupts . | . . . Stealth | -11 -10 -10 --------- Run | Yrd Mat Min Distress Signals 1 | . 1 . Communications Jammed . | . . . Distress Signals . | . . . Times Spotted 41 | . 14 27 Peak Tracking Total 10 | . 3 10 Tactical Retreats 1 | . . 1 Traps | -11 -10 -10 ------- Run | Yrd Mat Min Traps Triggered . | . . . Indirectly . | . . . Trap Hack Attempts . | . . . Triggered . | . . . Disarmed . | . . . Reprogrammed . | . . . Reused . | . . . Traps Extracted . | . . . Installed . | . . . Triggered . | . . . Machines | -11 -10 -10 ---------- Run | Yrd Mat Min Machines Disabled . | . . . Max in Single Turn . | . . . Machines Repaired . | . . . Machines Dismantled . | . . . Machines Sabotaged . | . . . Overloaded Fab Kills . | . . . Hacking | -11 -10 -10 --------- Run | Yrd Mat Min Machines Accessed 4 | . 3 1 Terminals 4 | . 3 1 Fabricators . | . . . Repair Stations . | . . . Recycling Units . | . . . Scanalyzers . | . . . Garrison Access . | . . . Total Hacks 6 | . 5 1 Successful 6 | . 5 1 Failed . | . . . Catastrophic . | . . . Database Lockouts . | . . . Manual . | . . . Terminals 6 | . 5 1 Fabricators . | . . . Repair Stations . | . . . Recycling Units . | . . . Scanalyzers . | . . . Garrison Access . | . . . Terminal Hacks 6 | . 5 1 Emergency Access Points 2 | . 2 . Alert Level 1 | . 1 . Dispatch Records 2 | . 1 1 Transport Status 1 | . 1 . Fabricator Hacks . | . . . Repair Station Hacks . | . . . Recycling Unit Hacks . | . . . Scanalyzer . | . . . Garrison Access Hacks . | . . . Unauthorized Hacks . | . . . Terminals . | . . . Fabricators . | . . . Repair Stations . | . . . Recycling Units . | . . . Scanalyzers . | . . . Garrison Access . | . . . Data Cores Recovered . | . . . Used . | . . . Hacking Detections 1 | . 1 . Full Trace Events . | . . . Feedback Events . | . . . Feedback Blocked . | . . . Robot Schematics Acquired . | . . . Robots Built . | . . . Authchips . | . . . Time . | . . . Total Robot Build Rating . | . . . Part Schematics Acquired . | . . . Parts Built . | . . . Authchips . | . . . Time . | . . . Total Part Build Rating . | . . . Parts Repaired . | . . . Time . | . . . Parts Recycled . | . . . Recycled Matter . | . . . Retrieved Matter . | . . . Retrieved Components . | . . . Parts Scanalyzed . | . . . Part Schematics Acquired . | . . . Parts Damaged . | . . . Bothacking | -11 -10 -10 ------------ Run | Yrd Mat Min Used RIF Installer . | . . . Robots Hacked . | . . . Non-combat . | . . . Combat . | . . . Robot Hacks Applied . | . . . Relay Couplers Released . | . . . Fabnet Peak Effective % . | . . . Robots Rewired . | . . . Allies Hacked . | . . . Hacks Repelled . | . . . Allies | -11 -10 -10 -------- Run | Yrd Mat Min Total Allies . | . . . Largest Group . | . . . Highest-Rated Group . | . . . Highest-Rated Ally . | . . . Total Orders . | . . . Ally Attacks . | . . . Total Damage . | . . . Kills . | . . . Allies Corrupted . | . . . Allies Melted . | . . . Intel | -11 -10 -10 ------- Run | Yrd Mat Min Robot Analysis Total . | . . . Derelict Logs Recovered 2 | . . 2 Drone Launches . | . . . Drone Recoveries . | . . . Exploration | -11 -10 -10 ------------- Run | Yrd Mat Min Turns Passed 1210 | 109 518 583 Spaces Moved 758 | 58 286 414 Core 22 | 21 . 1 Treads . | . . . Legs 736 | 37 286 413 Wheels . | . . . Hover . | . . . Flight . | . . . Fastest Speed 50 | 50 120 120 Average Speed 119 | 110 120 120 Slowest Speed 190 | 150 120 190 Overloaded Moves . | . . . Propulsion Burnouts . | . . . Robots Hopped . | . . . Cave-ins Triggered . | . . . Exploration Rate (%) 41 | 5 33 86 Regions Visited 2 Branch Regions 1 Pre-discovered Areas 2 | . . 2 Known Exits Taken . | . . . Unknown Exits Taken 2 | 1 1 . Scrap Searched 2 | . . 2 Spaces Dug . | . . . Terrain Destroyed 48 | . . 48 Melee . | . . . Projectile . | . . . AOE 48 | . . 48 Terrain Rammed . | . . . Walls Destroyed . | . . . Machines Disabled . | . . . Actions | -11 -10 -10 --------- Run | Yrd Mat Min Total 903 | 84 366 453 Wait 8 | . 6 2 Move 756 | 57 285 414 Hop . | . . . Pick Up 20 | 10 8 2 Fast Attach 5 | 2 2 1 Attach 6 | 5 . 1 Detach . | . . . Swap 8 | . 3 5 Drop 13 | . 8 5 Fire 87 | 10 54 23 Melee . | . . . Ram . | . . . Kick . | . . . Crush . | . . . Escape Stasis . | . . . Rewire . | . . . Trap . | . . . Miscellaneous . | . . . Route ------- -11/Scrapyard -10/Materials -10/Mines (discovered 2 exits: [*Mat x2]) History --------- Turn | Location | Event 8 | -11/Scrapyard | Discovered new exit (range 16) 110 | -11/Scrapyard | Entered Materials 144 | -10/Materials | Discovered new exit (range 5) 304 | -10/Materials | Build established: Mutant 628 | -10/Materials | Entered Mines 647 | -10/Mines | Discovered new exit (range 9) 669 | -10/Mines | Learned location of Zion (-6) 812 | -10/Mines | Discovered new exit (range 13) 881 | -10/Mines | Learned location of Storage (-8) 997 | -10/Mines | Build established: Scavenger-Mutant 1155 | -10/Mines | Received a Rocket Launcher from a helpful Derelict 1169 | -10/Mines | Assembled infested the area 1179 | -10/Mines | Core integrity fell below 50% 1205 | -10/Mines | Core integrity fell below 20% 1211 | -10/Mines | Destroyed by D-53 Grenadier with Mini Grenade Launcher Last Messages --------------- Found 32 Matter. Acquired 32 matter. as-07388 sneak attacks. R-06 Scavenger destroyed. as-26998 destroyed. Destroyed Asb. Hover Unit. as-37965 destroyed. Aluminum Leg destroyed. System corrupted by crushing effect (+2). C-30 ARC bursts open, deploying its payload. D-53 Grenadier unfolds itself. The unstable cave ceiling collapses. Aluminum Leg destroyed. as-49752 destroyed. Med. Laser destroyed. System corrupted by crushing effect (+5). Knocked back. Structural Scanner destroyed. Ion Engine destroyed. Rocket Launcher destroyed. Map ----- +----------------------------------------------------+ | ??????#### ##?###### ######???########## ### | | ??????#### ######### ######?????####### ### | | ?????##### ##### ##?????????### ## | | ????#### ### ##????????### ## | | ????### ## ######????????## ## | | """ ## ######???? # ### | | """ ## ## ######??## ###### ###### | | ### #### ###??## ###### #####? | | """ ### ##### ##??## ####?? | | """ ## #### ##??# ##### #####? | | """ ## ## ##???????????? ##### ###? | | ### ###???????????????## ##? | | ##### ###??????????????### ##? | | ########## ###??????????????#### ###? | | ####??????????????### ####? | | ####???????#???????## ###?? | | ##############t #####????? #??????### ###??? | | ############### #######?? #?????#### ###??? | | ????????????####%u #####? #????#### ##???? | | ???????????##### ### ##???### ###??? | | ???????????#### dd ## ##???## ####?? | | ???????????## # ##???## ###?? | | ???????????# ##???### ##?? | | ??????????????## ##???#### ##?? | | ??????????????### ##????#### ##?? | | ???????????????### @ ##?????#### ## ####?? | | ?????????????###### ###??????### ## ####?? | | ??????????########## a ###?????????## ##???? | | ?????????###### # # a ####?????????## ######??? | | ?????????### ####??????????## ######??? | | ?#######?## a*=*= ####???????????## ##??? | | ########### !a%= ####??????????###### ##??? | | ### ###### %aa #########??????###### ##??? | | ##### [%###### #######????####### ##### | | % #### =* #### ######?####### ##### | | ## ######## # | | !% [ ##### # | | = ### #### """ """ # | | # ##### ###### """ """ # | | # ### ### ##### ####### """ """ # | | ### ##### #### #### ### # | | #### ######### ###### ## """ """ # | | ?########?##### ####### ### ## """ """ # | | ??######?????## ##??### ### ## """ """ # | | ?????????????## ##??### ## ## # | | ?????????????######??## ## ###### ###### | | ?????????????######??## ## ###### ###### | | ?????????????????????## ## ###### ##???? | | ?????????????????????### ## ###### ##???? | | ?????????????????????###### ##???? | +----------------------------------------------------+ Best States ------------- Heat Dissipation 25 Energy Generation 10 Energy Capacity 250 Matter Stores 300 Matter Capacity 300 Sight Range 16 Terrain Scan Density 10 Armor Coverage 150 Evasion (%) 55 Item Schematics ----------------- None Robot Schematics ------------------ None Fabricated ------------ Nothing Alien Tech Used ----------------- None Achievements -------------- None Challenges ------------ None Game ------ Seed BarrageThermoelectricFalx Manual? 0 Play Time 00:09:37 Cumulative 30.0 hours Start 2024.09.26 @ 10:41:00 End 2024.09.26 @ 10:50:08 Sessions 1 Manual Loads 0 Difficulty Rogue Special Mode None Game No. 38 Rogue 38 Adventurer 0 Explorer 0 Win Type - Total 0 Types 0/0/0/0/0/0/0/0/0 Lore% 15 Gallery% 34 Achievement% 23 Wizard Run 0 Options --------- Layout 1 ASCII 0 Keyboard 0 Movement Numpad Keybinds 0 Fullscreen 1 Font 24/Smallcaps Map View 50x40 Zoom Use 0% Tactical HUD 0 Map Filters NONE Filters NONE Steam 1 RUN: 4622ae1c-4652-488d-b796-340acb6cbb34